Cogmind - Beta 15 --- EXPLORER MODE // 2025.05.12 @ 13:28:15 Player: wolft Result: Self-destructed Performance ------------- Evolutions (1) 500 Regions Visited (3) 600 Robots Destroyed (14) 70 Value Destroyed (169) 169 Prototype IDs (0) 0 Alien Tech Used (0) 0 Bonus (0) 0 TOTAL SCORE: 1339 Bonus ------- None Cogmind --------- Core Integrity 400/400 Matter 287/300 Energy 125/125 System Corruption 0% Temperature Cool (0) Movement Flying (117) Ox1 Location -9/Storage Parts ------- > --- POWER (1) -------- Light Ion Engine > --- PROPULSION (3) --- Flight Unit Flight Unit > --- UTILITY (4) ------ Small Storage Unit Structural Scanner Signal Interpreter Improved Terrain Scanner > --- WEAPON (2) ------- Datajack Mining Claw > --- INVENTORY (8) ---- Ion Engine Flight Unit Flight Unit Propulsion Shielding Hacking Suite Drone Bay (2/2) Drone Bay (2/2) Small Laser Peak State ------------ > --- POWER ------------ Light Ion Engine > --- PROPULSION ------- Flight Unit Flight Unit VTOL Module > --- UTILITY ---------- Small Storage Unit Structural Scanner Signal Interpreter Improved Terrain Scanner > --- WEAPON ----------- Small Laser Mining Claw > --- INVENTORY -------- Ion Engine Flight Unit Flight Unit Propulsion Shielding Hacking Suite Drone Bay Drone Bay Drone Bay [Rating: 15] Favorites ----------- Power Light Ion Engine Engine Light Ion Engine Propulsion Flight Unit Leg Aluminum Leg Flight Unit Flight Unit Utility Signal Interpreter Device Structural Scanner Storage Small Storage Unit Processor Signal Interpreter Protection Propulsion Shielding Weapon Small Laser Energy Gun Small Laser Ballistic Gun Light Assault Rifle Slashing Weapon Mining Claw Special Melee Weapon Datajack Build | -11 -10 -9 -9 ------- Run | Yrd Mat Mat Sto Slots Evolved 3 | . 1 2 . Power . | . . . . Propulsion 1 | . . 1 . Utility 2 | . 1 1 . Weapon . | . . . . Parts Attached 20 | 6 8 3 3 Power 3 | 1 2 . . Engine 3 | 1 2 . . Core . | . . . . Reactor . | . . . . Propulsion 7 | 2 2 2 1 Treads . | . . . . Leg 2 | 2 . . . Wheel . | . . . . Hover . | . . . . Flight 5 | . 2 2 1 Utility 5 | 1 2 1 1 Device 2 | . 1 1 . Storage 1 | . . . 1 Processor 1 | 1 . . . Hackware . | . . . . Protection 1 | . 1 . . Artifact . | . . . . Weapon 5 | 2 2 . 1 Energy Gun 1 | 1 . . . Energy Cannon . | . . . . Ballistic Gun 2 | 1 1 . . Ballistic Cannon . | . . . . Launcher . | . . . . Special Weapon . | . . . . Impact Weapon . | . . . . Slashing Weapon 1 | . 1 . . Piercing Weapon . | . . . . Special Melee Weapon 1 | . . . 1 Unidentified Prototypes . | . . . . Parts Lost 1 | . . . 1 Power . | . . . . Propulsion 1 | . . . 1 Utility . | . . . . Weapon . | . . . . Highest Loss Streak 1 | . . . 1 To Critical Strikes . | . . . . Average Backups 3 | 1 4 3 5 Power . | . 1 1 1 Propulsion . | . . 1 2 Utility 1 | 1 2 1 2 Weapon . | . . . . Tool/Special . | . . . . Unused Backups 6 | . 2 . 4 Power 1 | . . . 1 Propulsion 1 | . . . 1 Utility 4 | . 2 . 2 Weapon . | . . . . Tool/Special . | . . . . Average Slot Usage (%) 92 | . 86 98 100 Engine 11 | . 12 10 10 Leg 8 | . 15 . . Flight 18 | . 9 28 30 Device 14 | . 9 19 20 Processor 11 | . 12 10 10 Protection 5 | . 2 10 7 Energy Gun 10 | . 12 10 9 Ballistic Gun 5 | . 10 . . Slashing Weapon 5 | . 1 10 10 Peak Build Rating 15 | 6 8 12 15 Average Rating 9 | 4 6 11 13 On Entrance 6 | . 6 8 12 Naked Turns . | . . . . Heaviest Build 13 | 5 8 9 13 Greatest Support 20 | 20 20 12 12 Greatest Overweight (x) 1 | . . . 1 Average Overweight (x) . | . . . . Largest Inventory Capacity 8 | 5 5 5 8 Average Capacity 5 | 5 5 5 6 Most Carried 8 | 3 5 5 8 Average Carried 3 | 1 4 3 5 Final Capacity 8 | 5 5 5 8 Final Carried 8 | 3 5 5 8 Class Distribution -------------------- 57% | Hacker-Mutant 37% | Scavenger-Mutant 4% | Hacker-Sprinter Dominant Class ---------------- Hacker-Mutant | -10/Materials Scavenger-Mutant | -9/Materials Hacker-Sprinter | -9/Storage Resources | -11 -10 -9 -9 ----------- Run | Yrd Mat Mat Sto Matter Collected 429 | 116 241 53 19 Remotely . | . . . . Salvage Created 338 | . 296 23 19 Parts 23 | . 18 4 1 Haulers Intercepted 1 | . 1 . . Recyclers Shooed . | . . . . Parts Field Recycled . | . . . . Retrieved Matter . | . . . . Parts Self-Destructed . | . . . . Prevented . | . . . . Kills | -11 -10 -9 -9 ------- Run | Yrd Mat Mat Sto Combat Hostiles Destroyed 7 | . 6 1 . Melee 1 | . . 1 . Guns 6 | . 6 . . Classes Destroyed 6 | . 5 1 . Tunneler 1 | . 1 . . Hauler 1 | . 1 . . Recycler 1 | . 1 . . Operator 2 | . . 1 1 Watcher 2 | . 2 . . Swarmer 7 | . 6 1 . Best Kill Streak 5 | . 5 1 1 Combat Bots Only 2 | . 2 1 . Max Kills in Single Turn 1 | . 1 1 1 Gunslinging . | . . . . Exploded . | . . . . Melee 1 | . . 1 . Uniques/NPCs Destroyed . | . . . . Combat | -11 -10 -9 -9 -------- Run | Yrd Mat Mat Sto Hostile Shots Fired 37 | . 24 7 6 Missed 15 | . 6 7 2 Hits 22 | . 18 . 4 Projectile 22 | . 18 . 4 Damage Taken 119 | . 84 . 35 Core 17 | . 17 . . Absorbed by Shields . | . . . . Ignored by Resistances 86 | . 64 . 22 Regen/Repaired (Parts) 2 | . . 2 . Core Remaining (%) 96 | 100 93 . . Volleys Fired 35 | . 28 7 . Largest 2 | . 2 1 . Hottest 60 | . 60 40 . Shots Fired 61 | . 54 7 . Gun 61 | . 54 7 . Cannon . | . . . . Launcher . | . . . . Special . | . . . . Kinetic 27 | . 27 . . Thermal 34 | . 27 7 . Explosive . | . . . . Electromagnetic . | . . . . Robot Hit Streak 15 | . 12 15 . Robot Miss Streak 1 | . 1 . . Penetration Max . | . . . . Secondary Targets 1 | . 1 . . Max Gunslinging Chain 1 | . 1 . . Shots Hit Robots 51 | . 42 8 1 Core Hits 21 | . 17 3 1 Critical Kills . | . . . . Critical Parts Destroyed . | . . . . Critical Strikes . | . . . . Melee Attacks 14 | . . 8 6 Impact . | . . . . Slashing 12 | . . 8 4 Piercing . | . . . . Sneak Attacks 1 | . . . 1 Combat Hostiles . | . . . . Follow-up Attacks . | . . . . Damage Inflicted 570 | . 412 100 58 Guns 487 | . 412 75 . Cannons . | . . . . Explosions . | . . . . Melee 83 | . . 25 58 Ramming . | . . . . Kinetic 160 | . 160 . . Thermal 327 | . 252 75 . Explosive . | . . . . Electromagnetic . | . . . . Impact . | . . . . Slashing 83 | . . 25 58 Piercing . | . . . . Highest Corruption . | . . . . Average Corruption . | . . . . Corruption Purged . | . . . . Corruption Blocked . | . . . . Overload Shots . | . . . . Overflow Damage . | . . . . Projectiles . | . . . . Explosions . | . . . . Melee . | . . . . Knockbacks . | . . . . Impact . | . . . . Kinetic . | . . . . Secondary . | . . . . Self-Inflicted Damage . | . . . . Shots . | . . . . Rammed . | . . . . Targets Rammed . | . . . . Kicked . | . . . . Crushed . | . . . . Highest Temperature 74 | . 74 6 . Average Temperature 29 | . 30 6 . Received Heat Transfer 18 | . . . 18 Siege Activations . | . . . . Martial Activations . | . . . . Shielding Activations . | . . . . Robots Disrupted . | . . . . Combat Hostiles . | . . . . Robots Corrupted . | . . . . Combat Hostiles . | . . . . Parts Fried . | . . . . Impact Corruptions . | . . . . Robots Melted . | . . . . Combat Hostiles . | . . . . Parts Melted 1 | . 1 . . Heat Transferred 750 | . 575 175 . Parts Sabotaged . | . . . . Parts Stolen . | . . . . Parts Stripped . | . . . . Power Chain Reactions . | . . . . Alert | -11 -10 -9 -9 ------- Run | Yrd Mat Mat Sto Maximum Alert Level . | . . . . Low Security (%) 100 | 100 100 100 100 Level 1 . | . . . . Level 2 . | . . . . Level 3 . | . . . . Level 4 . | . . . . Level 5 . | . . . . High Security . | . . . . Max Security . | . . . . Peak Influence 104 | . 104 46 15 Initial 13 | . . 13 . Average 19 | . 30 12 5 Influence Increases 357 | . 208 98 51 Destroy 0b10 Robot/C 140 | . 120 20 . Destroy 0b10 Robot/NC 35 | . 25 5 5 Destroy Leader 46 | . 36 10 . Successful Hack 19 | . 12 . 7 Disable Machine 8 | . . . 8 Destroy Structure 4 | . . 3 1 Partial Spotted 45 | . . 30 15 Lose Combat Pursuer 60 | . 15 30 15 Influence Decreases 352 | . 162 143 47 Entered New Map 34 | . . 33 1 Time Decay 308 | . 162 110 36 Lost Part 10 | . . . 10 Squads Dispatched 1 | . . 1 . Investigation . | . . . . Extermination . | . . . . Reinforcement 1 | . . 1 . Assault . | . . . . Garrison . | . . . . Intercept . | . . . . Searches Triggered . | . . . . Construction Impeded . | . . . . Haulers Reinforced . | . . . . Active Scanning Responses . | . . . . Cargo Convoy Interrupts . | . . . . Stealth | -11 -10 -9 -9 --------- Run | Yrd Mat Mat Sto Distress Signals 4 | . 3 1 . Communications Jammed . | . . . . Distress Signals . | . . . . Times Spotted 24 | . 10 10 4 Peak Tracking Total 5 | . 3 5 2 Tactical Retreats 3 | . 1 1 1 Traps | -11 -10 -9 -9 ------- Run | Yrd Mat Mat Sto Traps Triggered . | . . . . Indirectly . | . . . . Trap Hack Attempts . | . . . . Triggered . | . . . . Disarmed . | . . . . Reprogrammed . | . . . . Reused . | . . . . Traps Extracted . | . . . . Installed . | . . . . Triggered . | . . . . Machines | -11 -10 -9 -9 ---------- Run | Yrd Mat Mat Sto Machines Disabled 2 | . . . 2 Max in Single Turn 1 | . . . 1 Machines Repaired . | . . . . Machines Dismantled . | . . . . Machines Sabotaged . | . . . . Overloaded Fab Kills . | . . . . Hacking | -11 -10 -9 -9 --------- Run | Yrd Mat Mat Sto Machines Accessed 6 | . 2 1 3 Terminals 5 | . 2 . 3 Fabricators . | . . . . Repair Stations 1 | . . 1 . Recycling Units . | . . . . Scanalyzers . | . . . . Garrison Access . | . . . . Total Hacks 16 | . 6 4 6 Successful 13 | . 3 4 6 Failed 3 | . 3 . . Catastrophic . | . . . . Database Lockouts . | . . . . Manual . | . . . . Terminals 12 | . 6 . 6 Fabricators . | . . . . Repair Stations 4 | . . 4 . Recycling Units . | . . . . Scanalyzers . | . . . . Garrison Access . | . . . . Terminal Hacks 9 | . 3 . 6 Record 1 | . 1 . . Open Door 1 | . . . 1 Branch Access Points 1 | . 1 . . Emergency Access Points 2 | . . . 2 Locate Traps 2 | . 1 . 1 Hauler Manifests 1 | . . . 1 Zone Layout 1 | . . . 1 Fabricator Hacks . | . . . . Repair Station Hacks 4 | . . 4 . Scan Component 2 | . . 2 . Repair 2 | . . 2 . Recycling Unit Hacks . | . . . . Scanalyzer . | . . . . Garrison Access Hacks . | . . . . Unauthorized Hacks . | . . . . Terminals . | . . . . Fabricators . | . . . . Repair Stations . | . . . . Recycling Units . | . . . . Scanalyzers . | . . . . Garrison Access . | . . . . Data Cores Recovered . | . . . . Used . | . . . . Hacking Detections 4 | . 2 . 2 Full Trace Events . | . . . . Feedback Events . | . . . . Feedback Blocked . | . . . . Robot Schematics Acquired . | . . . . Robots Built . | . . . . Authchips . | . . . . Time . | . . . . Total Robot Build Rating . | . . . . Part Schematics Acquired . | . . . . Parts Built . | . . . . Authchips . | . . . . Time . | . . . . Total Part Build Rating . | . . . . Parts Repaired 2 | . . 2 . Time 52 | . . 52 . Parts Recycled . | . . . . Recycled Matter . | . . . . Retrieved Matter . | . . . . Retrieved Components . | . . . . Parts Scanalyzed . | . . . . Part Schematics Acquired . | . . . . Parts Damaged . | . . . . Bothacking | -11 -10 -9 -9 ------------ Run | Yrd Mat Mat Sto Used RIF Installer . | . . . . Robots Hacked . | . . . . Non-combat . | . . . . Combat . | . . . . Robot Hacks Applied . | . . . . Relay Couplers Released . | . . . . Fabnet Peak Effective % . | . . . . Robots Rewired . | . . . . Allies Hacked . | . . . . Hacks Repelled . | . . . . Allies | -11 -10 -9 -9 -------- Run | Yrd Mat Mat Sto Total Allies . | . . . . Largest Group . | . . . . Highest-Rated Group . | . . . . Highest-Rated Ally . | . . . . Total Orders . | . . . . Ally Attacks . | . . . . Total Damage . | . . . . Kills . | . . . . Allies Corrupted . | . . . . Allies Melted . | . . . . Intel | -11 -10 -9 -9 ------- Run | Yrd Mat Mat Sto Active Infowar (turns) 646 | . 301 250 95 Terrain 344 | . . 249 95 Structural 646 | . 301 250 95 Robot Analysis Total . | . . . . Derelict Logs Recovered . | . . . . Drone Launches . | . . . . Drone Recoveries . | . . . . Exploration | -11 -10 -9 -9 ------------- Run | Yrd Mat Mat Sto Turns Passed 794 | 54 395 250 95 Spaces Moved 869 | 36 389 274 170 Core 5 | 5 . . . Treads . | . . . . Legs 211 | 31 180 . . Wheels . | . . . . Hover . | . . . . Flight 653 | . 209 274 170 Fastest Speed 32 | 50 37 34 32 Average Speed 57 | 110 75 34 40 Slowest Speed 120 | 120 120 34 112 Overloaded Moves . | . . . . Propulsion Burnouts . | . . . . Robots Hopped 3 | . . 1 2 Potential Cave-ins . | . . . . Cave-ins Triggered . | . . . . Exploration Rate (%) 28 | 3 65 28 17 Regions Visited 3 Branch Regions 1 Pre-discovered Areas . | . . . . Known Exits Taken 3 | 1 1 1 . Unknown Exits Taken . | . . . . Scrap Searched . | . . . . Spaces Dug 4 | . . 3 1 Terrain Destroyed 4 | . . 3 1 Melee 4 | . . 3 1 Projectile . | . . . . AOE . | . . . . Terrain Rammed . | . . . . Walls Destroyed . | . . . . Machines Disabled . | . . . . Actions | -11 -10 -9 -9 --------- Run | Yrd Mat Mat Sto Total 1079 | 47 443 404 185 Wait 117 | 3 4 110 . Move 860 | 35 388 271 166 Hop 3 | . . 1 2 Pick Up 17 | 3 7 2 5 Fast Attach 11 | 6 2 2 1 Attach 4 | . 2 2 . Detach . | . . . . Swap 7 | . 4 1 2 Drop 11 | . 8 . 3 Fire 35 | . 28 7 . Melee 14 | . . 8 6 Ram . | . . . . Kick . | . . . . Crush . | . . . . Escape Stasis . | . . . . Rewire . | . . . . Trap . | . . . . Miscellaneous . | . . . . Route ------- -11/Scrapyard -10/Materials (discovered 5 exits: *Mat x2 / *Min x2 / Sub) -9/Materials (discovered 2 exits: *Min / *Sto) -9/Storage History --------- Turn | Location | Event 4 | -11/Scrapyard | Identified exit to Materials 4 | -11/Scrapyard | Discovered exit to Materials (range 15) 55 | -11/Scrapyard | Entered Materials 55 | -10/Materials | Evolved 1 slot: Utility x1 81 | -10/Materials | Identified exit to Mines 81 | -10/Materials | Discovered exit to Mines (range 16) 207 | -10/Materials | Identified exit to Materials 207 | -10/Materials | Discovered exit to Materials (range 10) 282 | -10/Materials | Identified exit to Subcaves 282 | -10/Materials | Discovered exit to Subcaves (range 4) 303 | -10/Materials | Build established: Hacker-Mutant 376 | -10/Materials | Discovered exit to Materials (range 10) 450 | -10/Materials | Entered another Materials area 450 | -9/Materials | Evolved 2 slots: Propulsion x1, Utility x1 456 | -9/Materials | Repaired Flight Unit 482 | -9/Materials | Repaired Flight Unit 494 | -9/Materials | Identified exit to Mines 494 | -9/Materials | Discovered exit to Mines (range 7) 685 | -9/Materials | Identified exit to Storage 685 | -9/Materials | Discovered exit to Storage (range 16) 700 | -9/Materials | Entered Storage 795 | -9/Storage | Self-destructed Last Messages --------------- 4x Grenade Launcher A-02 Transporter 4x Shotgun 2x VTOL Module >>Layout(Zone) Retrieving Zone 1C layout... Downloaded map data. 00749_ Terminal disabled. 00753_ O-16 Technician: "IFF HANDSHAKE FAILED. SECURING TERMINAL." 00762_ Connecting with Door Terminal... >>Open(Door) Sealed Heavy Doors opened. 00764_ Acquired Drone Bay. 00775_ Sneak attack on O-16 Technician. 00775_ O-16 Technician destroyed. 00778_ Acquired 19 matter. 00780_ Dropped Drone Bay. 00780_ Acquired Datajack. 00794_ VTOL Module destroyed. Map ----- +----------------------------------------------------+ | | | | | | | | | | | | | | | | | | | | | | | | | | | | | | | | | ??????????????#????????????????????????????????? | | ????????????????????#??????????????????????????? | | ?????????????????##########???????????#????????? | | ??????????#??????###########???????????????????? | | ??????########???##!!!!#T###???????????#???????? | | ?????? ########??## ##???????????????????? | | ?????? #######! # ##????######?????????? | | ???### ############! ################?????? | | ???####### ###" "########+#######"T"######?????? | | ???## @ Y | | ???## u Y | | ???## | | ???###### ####################+############## ? | | ???###### ############## #############?? | | ?????#?## ##????######## """" ???????#????????? | | ???????## ##????## ## " ""????????????????? | | ???????## ##????## ## " ""????????????????? | | ???????## ###?#?## ## """ ??+?+???????????? | | ???????##^#####?## ## "" ????????????????? | | ???????##^"####### ## """????????????????? | | ???????## ######## ## ????????????????? | | #????#### ## #########????????????????? | | ????#####+##### ## ##???????????????????????? | | ????### ## ## ######???????????????????? | | ????##" """ # ##+########???????????????????? | | #???## """ + " #######??????????????? | | ????##" """ # ########+#######??????????????? | | ???#### ## ###### ! ##??????????????? | | ????### ## ###?## ] = ###?????????????? | | ?????#####+#### ##? # ##??????????????? | | ?????##### #### ?? #] =[ ##??????????????? | | ????????## #######?? ####+#######??#???????????? | | ????????##+#######??##### #######??????????????? | | ?#?????? ##?#### ##### ##???????????????????? | +----------------------------------------------------+ Best States ------------- Heat Dissipation 28 Energy Generation 10 Energy Capacity 125 Matter Stores 300 Matter Capacity 300 Sight Range 16 Terrain Scan Range 16 Terrain Scan Density 10 Resistance: KI 35 Resistance: TH 35 Resistance: EX 35 Resistance: EM 35 Resistance: I 35 Resistance: S 35 Resistance: P 35 Propulsion Shielding 33 Evasion (%) 63 Offensive Hacking 20 Item Schematics ----------------- None Robot Schematics ------------------ None Fabricated ------------ Nothing Repaired ---------- Flight Unit | 90% | -9/Materials Alien Tech Used ----------------- None Achievements -------------- None Challenges ------------ None Game ------ Seed IntegrityRiotDissipator Manual? 0 Play Time 00:15:04 Cumulative 59.7 hours Start 2025.05.12 @ 13:08:11 End 2025.05.12 @ 13:28:15 Sessions 1 Manual Loads 0 Difficulty Explorer Special Mode None Game No. 113 Rogue 6 Adventurer 26 Explorer 81 Win Type - Total 1 Types 1/0/0/0/0/0/0/0/0/0 Lore% 21 Gallery% 38 Achievement% 39 Wizard Run 0 Options --------- Layout 1 ASCII 0 Keyboard 0 Movement Mouse Keybinds 0 Fullscreen 1 Font 24/Terminus Map View 50x35 Zoom Use 0% Tactical HUD 1 Map Filters NONE Filters NONE Steam 1 RUN: 60b78f3d-4a59-4176-bf1f-ae4314b1a381